Cogmind - Beta 17 @@@ ROGUE MODE // 2026.06.26 @ 03:27:18 Player: cptwinky Result: Escaped! Performance ------------- Evolutions (9) 4500 Regions Visited (21) 4200 Robots Destroyed (383) 1915 Value Destroyed (20455) 20455 Prototype IDs (54) 1080 Alien Tech Used (0) 0 Bonus (26589) 26589 TOTAL SCORE: 58739 Bonus ------- High Alert Combat Kills 3936 Follower Combat Kills 5266 Prayed to X0-1V1 5000 Major X0-1V1 Interference 8350 Entered Garrisons 1200 Used RIF Installer 3000 Aligned with FarCom 300 Win 3000 Friendly Fire -3463 Cogmind --------- Core Integrity 1156/1700 Matter 184/900 Energy 435/450 System Corruption 11% Temperature Cool (8) Movement Walking (114) Location To Epsilon Eridani Parts ------- > --- POWER (3) -------- Micro Antimatter Reactor Micro Antimatter Reactor Quantum Reactor > --- PROPULSION (7) --- Biometal Leg Biometal Leg Enhanced Multireflex Exoskeleton Centrium Leg Centrium Leg > --- UTILITY (12) ----- Power Amplifier Experimental Power Amplifier Experimental Power Amplifier Huge Storage Unit Advanced Targeting Computer Improved Melee Analysis Suite Advanced Weapon Cycler Advanced Force Booster Advanced Phase Shifter Experimental Thermal Shield Relay Coupler [Sentry] (86) X0-1V1's Piety Tracker > --- WEAPON (4) ------- Matter Neutralizer Experimental Remote Datajack Lance Plasma Lance > --- INVENTORY (27) --- Biometal Leg Biometal Leg Large Matter Pod (0) Precision Matter Filter Advanced Phase Shifter Hacking Suite Advanced System Shield Relay Coupler [Swarmer] (99) Advanced Component Analysis Suite Gamma Bomb Array Fusion Bomb Launcher Chaos Jack (9) Advanced Datajack Faulty Vibroblade Peak State ------------ > --- POWER ------------ Reinforced Antimatter Reactor Mini Fusion Reactor Light Quantum Reactor > --- PROPULSION ------- Myomer Leg Biometal Leg Biometal Leg Biometal Leg Centrium Leg Centrium Leg Centrium Leg > --- UTILITY ---------- Experimental Power Amplifier Huge Storage Unit Improved Melee Analysis Suite Advanced Target Analyzer Advanced Reaction Control System Graphene Brace Improved Focal Shield Advanced Thermal Defense Suite Advanced Shield Generator Relay Coupler [NC] Relay Coupler [Sentry] X0-1V1's Piety Tracker > --- WEAPON ----------- Gamma Rifle Great Axe Plasma Lance Enhanced Force Lance > --- INVENTORY -------- Micro Antimatter Reactor Myomer Leg Biometal Leg Enhanced Multireflex Exoskeleton Centrium Leg Experimental Power Amplifier Large Matter Pod Advanced Targeting Computer Advanced Weapon Cycler Advanced Force Booster Hacking Suite Advanced System Shield Relay Coupler [Swarmer] Relay Coupler [Sentry] Advanced Component Analysis Suite Mini Drone Bay Gamma Rifle Matter Neutralizer Hypervelocity Railgun Gamma Bomb Array Fusion Bomb Launcher Chaos Jack Advanced Datajack Advanced Remote Datajack Experimental Remote Datajack [Rating: 201] Favorites ----------- Power Reinforced Antimatter Reactor Engine Ion Engine Power Core Enhanced Nuclear Core Reactor Reinforced Antimatter Reactor Propulsion Flexi-carbon Leg Treads Light Treads Leg Flexi-carbon Leg Wheel Wheel Flight Unit Cooled VTOL Module Utility X0-1V1's Piety Tracker Device X0-1V1's Piety Tracker Storage High-capacity Storage Unit Processor Advanced Targeting Computer Hackware Relay Coupler [Sentry] Protection Centrium Light Armor Plating Weapon Great Axe Energy Gun Precision Shock Rifle Energy Cannon Matter Neutralizer Ballistic Gun Minigun Ballistic Cannon Light Cannon Launcher Guided EMP Blaster Special Weapon Experimental Remote Datajack Impact Weapon Shock Maul Slashing Weapon Great Axe Piercing Weapon Enhanced Force Lance Special Melee Weapon Chaos Jack Build | -11 -10 -10 -10 -9 -8 -8 -8 -8 -8 -8 -7 -7 -6 -6 -5 -5 -4 -4 -3 -2 -1 ------- Run | Yrd Mat Min Exi Min Mat Gar Mat Gar Mat Sto Fac Gar Fac Gar Fac Gar Fac Gar Res Res Acc Slots Evolved 18 | . . . . . 4 . . . . . 2 . 2 . 2 . 2 . 2 2 2 Power 1 | . . . . . . . . . . . . . . . . . . . . 1 . Propulsion 6 | . . . . . 1 . . . . . 2 . 1 . 1 . . . 1 . . Utility 10 | . . . . . 2 . . . . . . . 1 . 1 . 2 . 1 1 2 Weapon 1 | . . . . . 1 . . . . . . . . . . . . . . . . Parts Attached 274 | 7 5 2 1 3 7 15 10 14 2 19 16 12 1 12 5 19 1 4 39 41 39 Power 46 | 1 1 1 . . . 4 1 3 1 7 2 1 . 3 . 3 . 1 2 7 8 Engine 16 | 1 1 1 . . . 2 1 2 . 7 . . . . . 1 . . . . . Core 12 | . . . . . . 2 . 1 1 . 2 1 . 3 . 1 . . . 1 . Reactor 18 | . . . . . . . . . . . . . . . . 1 . 1 2 6 8 Propulsion 79 | 2 . . . . 2 4 4 4 1 2 6 6 . 6 1 5 . . 14 14 8 Treads 10 | 2 . . . . 2 4 1 1 . . . . . . . . . . . . . Leg 62 | . . . . . . . 1 1 . . 6 6 . 6 1 5 . . 14 14 8 Wheel 7 | . . . . . . . 2 2 1 2 . . . . . . . . . . . Hover . | . . . . . . . . . . . . . . . . . . . . . . Flight . | . . . . . . . . . . . . . . . . . . . . . . Utility 103 | 2 3 . 1 1 3 2 3 2 . 4 8 5 1 2 4 6 1 2 18 16 19 Device 57 | 1 1 . . 1 2 1 1 1 . 1 4 3 . 2 2 2 1 . 10 9 15 Storage 5 | 1 1 . 1 . . . . 1 . . . . . . . . . . . 1 . Processor 12 | . . . . . 1 . . . . 1 1 . . . . 1 . . 4 3 1 Hackware 18 | . . . . . . . 2 . . 1 2 2 . . 2 2 . 1 3 2 1 Protection 11 | . 1 . . . . 1 . . . 1 1 . 1 . . 1 . 1 1 1 2 Artifact . | . . . . . . . . . . . . . . . . . . . . . . Weapon 46 | 2 1 1 . 2 2 5 2 5 . 6 . . . 1 . 5 . 1 5 4 4 Energy Gun 8 | . . . . 1 2 2 . . . 1 . . . . . . . . . 2 . Energy Cannon 1 | . . . . . . . . . . . . . . . . . . . . 1 . Ballistic Gun 15 | 2 . . . . . 3 . 5 . . . . . 1 . 4 . . . . . Ballistic Cannon 3 | . . 1 . 1 . . . . . 1 . . . . . . . . . . . Launcher 4 | . . . . . . . . . . 2 . . . . . . . . 1 . 1 Special Weapon 3 | . 1 . . . . . 1 . . . . . . . . . . . 1 . . Impact Weapon 1 | . . . . . . . . . . . . . . . . . . . . 1 . Slashing Weapon 5 | . . . . . . . 1 . . 2 . . . . . . . . 1 . 1 Piercing Weapon 4 | . . . . . . . . . . . . . . . . 1 . 1 1 . 1 Special Melee Weapon 2 | . . . . . . . . . . . . . . . . . . . 1 . 1 Unidentified Prototypes 25 | . 1 . . . 2 . 1 . . 3 1 . . . . 4 . 2 4 4 3 Corrupted Parts 1 | . . . . . . . 1 . . . . . . . . . . . . . . System Corruption 7 | . . . . . . . 7 . . . . . . . . . . . . . . Parts Lost 97 | . 2 . . 2 . 4 2 4 . 4 4 4 . 4 . 2 . 2 13 21 29 Power 15 | . 1 . . . . 1 . 1 . . . . . 2 . . . . 1 3 6 Propulsion 31 | . . . . . . 2 . 1 . 2 1 3 . . . 1 . . 8 6 7 Utility 38 | . 1 . . . . 1 2 . . 1 3 1 . 2 . 1 . 1 4 10 11 Weapon 13 | . . . . 2 . . . 2 . 1 . . . . . . . 1 . 2 5 Highest Loss Streak 13 | . 2 . . 2 . 1 1 2 . 2 1 2 . 2 . 1 . 1 5 4 13 To Critical Strikes . | . . . . . . . . . . . . . . . . . . . . . . Average Backups 18 | 3 7 9 9 11 12 15 15 17 21 20 18 19 19 19 18 19 20 19 20 23 20 Power . | . . . . . . . . . . . . 1 1 . . . 1 . . . . Propulsion 3 | 1 3 3 3 3 5 5 5 5 6 5 4 2 1 1 . . . 1 1 3 2 Utility 9 | . . 2 3 3 2 4 6 7 9 8 8 10 12 12 12 12 13 12 12 12 11 Weapon 4 | 1 3 3 3 3 4 4 2 3 5 4 4 4 4 4 4 5 5 3 3 4 3 Tool/Special . | . . . . . . . . . . . . . . . . . . . . . . Unused Backups 54 | . 3 4 . . 1 5 2 . . 3 1 4 . 2 3 1 . 4 6 7 8 Power 3 | . . . . . . . . . . 1 . . . . . . . . 1 1 . Propulsion 14 | . 1 1 . . . 2 1 . . . . . . 1 3 . . . . 3 2 Utility 22 | . . 1 . . . 1 1 . . 1 1 2 . 1 . 1 . 2 3 2 6 Weapon 14 | . 2 2 . . 1 2 . . . 1 . 2 . . . . . 2 1 1 . Tool/Special 1 | . . . . . . . . . . . . . . . . . . . 1 . . Average Slot Usage (%) 96 | . 96 99 100 100 96 97 99 95 94 96 96 99 93 98 97 99 94 99 95 93 87 Engine 6 | . 13 23 28 28 18 11 8 11 8 15 11 . . . . 1 . . . . . Core 3 | . . . . . . 4 8 3 3 . 2 14 12 12 11 5 5 4 . 1 2 Reactor 3 | . . . . . . . . . . . . . . . . 2 5 5 8 10 7 Treads 5 | . 27 28 28 28 27 24 9 3 . . . . . . . . . . . . . Leg 16 | . . . . . . . . . . . 27 27 25 29 30 32 30 30 27 23 22 Wheel 2 | . . . . . . . 6 11 16 13 . . . . . . . . . . . Device 15 | . 4 14 14 12 9 13 15 16 16 15 9 6 6 5 10 10 24 20 20 24 22 Storage 6 | . 14 14 14 14 9 8 8 8 8 8 7 7 6 6 5 5 5 5 4 4 3 Processor 6 | . . . . . 8 8 8 8 8 8 10 14 12 12 11 7 5 5 4 4 6 Hackware 5 | . . . . . . . 5 8 8 8 7 6 6 6 5 6 5 9 8 5 4 Protection 2 | . 6 . . 1 8 2 2 . . . . . 6 6 5 6 5 5 5 3 1 Energy Gun 2 | . . . . . 11 22 . . . 3 1 . . . . . 5 . . . 1 Ballistic Gun 6 | . 28 8 . . . . 24 20 25 13 . . . . 2 5 . 8 . . . Ballistic Cannon 1 | . . 9 14 13 3 . . . . 4 1 . . . . . . . . . . Slashing Weapon 5 | . . . . . . . . . . 1 14 20 13 16 10 7 5 5 7 4 2 Piercing Weapon 1 | . . . . . . . . . . . . . . . . . . . 4 6 4 Peak Build Rating 201 | 7 20 21 22 23 46 57 59 62 52 59 81 80 85 91 106 137 141 143 174 191 201 Average Rating 96 | 5 7 20 20 20 34 47 50 49 50 52 69 73 83 81 102 119 140 139 154 179 185 On Entrance 70 | . 7 20 21 22 22 38 49 52 49 52 52 69 76 80 91 106 131 141 136 154 183 Avg Prop Armor Cover (%) 8 | . . . . . . . 8 8 . . . . . . . . . . . 2 . Naked Turns . | . . . . . . . . . . . . . . . . . . . . . . Heaviest Build 186 | 13 22 24 34 36 42 53 52 68 66 77 84 71 70 83 86 117 109 115 130 186 186 Greatest Support 210 | 40 40 40 40 40 60 63 40 20 26 26 76 75 75 90 113 143 138 138 198 210 199 Greatest Overweight (x) 7 | . . . . . . 1 5 5 3 7 1 1 . . . . . . 1 1 1 Average Overweight (x) . | . . . . . . . 2 3 2 3 . . . . . . . . . . . Largest Inventory Capacity 27 | 8 10 10 15 15 15 17 17 22 22 22 22 22 22 22 22 22 22 22 22 27 27 Average Capacity 20 | 7 9 10 13 15 15 16 17 19 22 22 22 22 22 22 22 22 22 22 22 26 27 Most Carried 27 | 6 10 10 12 14 15 17 17 22 22 22 22 22 22 22 22 22 21 22 22 27 27 Average Carried 19 | 4 7 9 9 12 13 16 16 18 22 21 20 21 21 21 18 20 20 20 21 23 20 Final Capacity 27 | 8 10 10 15 15 15 17 17 22 22 22 22 22 22 22 22 22 22 22 22 27 27 Final Carried 23 | 6 10 10 12 12 15 17 17 22 22 22 22 22 22 21 18 22 20 22 22 23 14 Class Distribution -------------------- 23% | Bothacker-Gladiator 17% | Bothacker-Skirmisher 12% | Mutant 8% | Botlord-Gladiator 7% | Hauler-Gladiator 7% | Scavenger-Gladiator 5% | Bothacker-Mutant 4% | Botlord-Mutant 3% | Scavenger-Skirmisher 3% | Skirmisher Dominant Class ---------------- Mutant | -10/Materials Mutant | -10/Mines Mutant | -10/Exiles Mutant | -9/Mines Mutant | -8/Materials Scavenger-Skirmisher | -8/Garrison Bothacker-Skirmisher | -8/Materials Bothacker-Skirmisher | -8/Garrison Bothacker-Skirmisher | -8/Materials Bothacker-Skirmisher | -8/Storage Bothacker-Gladiator | -7/Factory Bothacker-Gladiator | -7/Garrison Bothacker-Gladiator | -6/Factory Bothacker-Gladiator | -6/Garrison Scavenger-Gladiator | -5/Factory Bothacker-Mutant | -5/Garrison Botlord-Mutant | -4/Factory Botlord-Mutant | -4/Garrison Botlord-Gladiator | -3/Research Hauler-Gladiator | -2/Research Bothacker-Gladiator | -1/Access Resources | -11 -10 -10 -10 -9 -8 -8 -8 -8 -8 -8 -7 -7 -6 -6 -5 -5 -4 -4 -3 -2 -1 ----------- Run | Yrd Mat Min Exi Min Mat Gar Mat Gar Mat Sto Fac Gar Fac Gar Fac Gar Fac Gar Res Res Acc Matter Collected 14771 | 303 204 85 10 82 36 975 942 1829 88 1441 901 919 37 549 163 1104 30 692 1490 1890 1001 Remotely . | . . . . . . . . . . . . . . . . . . . . . . Salvage Created 21054 | 105 237 122 . 86 60 1580 891 1990 150 1990 1479 419 37 939 320 678 . 154 2041 5135 2641 Parts 979 | 15 12 12 . 5 2 81 49 99 6 96 79 20 . 45 11 38 . 5 102 181 121 Haulers Intercepted 17 | . 2 . . . . . 3 . . 6 2 . . . 1 . . . 2 . 1 Recyclers Shooed 6 | . . . . . . . . . . 1 . . . . . . . . 1 3 1 Parts Field Recycled . | . . . . . . . . . . . . . . . . . . . . . . Retrieved Matter . | . . . . . . . . . . . . . . . . . . . . . . Parts Self-Destructed . | . . . . . . . . . . . . . . . . . . . . . . Prevented . | . . . . . . . . . . . . . . . . . . . . . . Parts Restored . | . . . . . . . . . . . . . . . . . . . . . . Kills | -11 -10 -10 -10 -9 -8 -8 -8 -8 -8 -8 -7 -7 -6 -6 -5 -5 -4 -4 -3 -2 -1 ------- Run | Yrd Mat Min Exi Min Mat Gar Mat Gar Mat Sto Fac Gar Fac Gar Fac Gar Fac Gar Res Res Acc Combat Hostiles Destroyed 294 | . 5 4 . 3 1 28 15 36 3 25 23 15 . 18 . 13 . 3 22 54 26 Melee 79 | . . . . . . . . . . . 2 6 . 10 . 5 . 2 21 22 11 Guns 126 | . 5 4 . . 1 25 15 36 3 15 3 . . . . 5 . . 1 13 . Cannons 20 | . . . . 3 . . . . . 9 2 . . 6 . . . . . . . AOE 40 | . . . . . . . . . . . 13 9 . 2 . 3 . 1 . 5 7 Classes Destroyed 24 | 1 4 . . . 1 2 . 3 . 3 2 . . 2 . 2 . 1 . 2 1 Worker 25 | . 1 . . 1 . . 1 . . 8 3 . . . 2 . . . . 6 3 Builder 14 | . . . . . . . . . . 1 4 . . . . . . . . 5 4 Tunneler 4 | 4 . . . . . . . . . . . . . . . . . . . . . Hauler 17 | . 2 . . . . . 3 . . 6 2 . . . 1 . . . 2 . 1 Recycler 12 | . . . . . . . . . . 4 3 . . . 1 . . . . 2 2 Mechanic 2 | . . . . . . . . . . . 1 . . . . . . . 1 . . Operator 4 | . . . . . . . . 1 . 1 1 . . . . . . . 1 . . Drone 1 | . . . . . . . . . . . . . . 1 . . . . . . . Watcher 3 | . . . . . . . . . . 1 . . . . . . . . . 2 . Swarmer 36 | . 3 2 . 2 . 8 2 5 . . 2 6 . . . 4 . 1 . 1 . Cutter 5 | . . . . . . . . . . . . . . 2 . 3 . . . . . Grunt 113 | . 2 2 . . . 9 7 18 . 16 11 4 . 12 . 1 . . 4 15 12 Brawler 7 | . . . . . . . . 2 . 1 1 . . . . . . . . 2 1 Duelist 5 | . . . . . . 2 . . . . . 1 . . . . . . . 2 . Protector 1 | . . . . . . . . . . . . . . . . . . . . . 1 Sentry 41 | . . . . . 1 9 6 8 2 8 1 . . . . 3 . . 1 2 . Demolisher 1 | . . . . . . . . . . . . . . . . . . . . 1 . Specialist 2 | . . . . . . . . . . . . . . . . . . . . 2 . Hunter 34 | . . . . . . 1 . 1 1 . 4 . . 1 . . . . 3 18 5 Programmer 40 | . . . . . . . . 2 . . 3 4 . 2 . . . . 14 9 6 Heavy 7 | . . . . . . . . . . . 1 . . . . . . . 1 2 3 Behemoth 2 | . . . . . . . . . . . . . . . . 1 . . 1 . . Striker 2 | . . . . . . . . . . . . . . . . . . 2 . . . Executioner 2 | . . . . . . . . . . . . . . . . 2 . . . . . Thug 1 | . . . . . . . . . . . . . 1 . . . . . . . . Savage 1 | . . . . . . . . . . . . . . . . . . . . 1 . Best Kill Streak 13 | 2 2 2 . 2 1 5 4 7 2 11 9 7 . 4 3 4 . 2 8 13 11 Combat Bots Only 10 | . 2 2 . 2 1 5 4 7 2 10 6 7 . 4 . 4 . 2 4 10 6 Max Kills in Single Turn 4 | 2 2 2 . 1 1 2 2 2 1 3 3 3 1 2 1 3 . 1 1 4 4 Gunslinging 1 | . . 1 . . . 1 . 1 . . . . . . . . . . . . . Exploded 3 | . . . . . . . . . . . 2 3 . 2 . 2 . 1 . 1 2 Melee 1 | . . . . . . . . . . . 1 1 . 1 . 1 . 1 1 1 1 Uniques/NPCs Destroyed 2 | . . . . 1 . 1 . . . . . . . . . . . . . . . YI-UF0 (-9/Mines) AZ-K3N (-8/Garrison) Combat | -11 -10 -10 -10 -9 -8 -8 -8 -8 -8 -8 -7 -7 -6 -6 -5 -5 -4 -4 -3 -2 -1 -------- Run | Yrd Mat Min Exi Min Mat Gar Mat Gar Mat Sto Fac Gar Fac Gar Fac Gar Fac Gar Res Res Acc Hostile Shots Fired 2052 | . 27 10 . 28 8 58 40 106 9 59 204 104 . 65 7 58 . 30 384 539 316 Missed 719 | . 10 2 . 11 2 17 13 33 2 16 85 33 . 17 4 14 . 15 152 188 105 Deflected 1 | . . . . . . . . . . . . . . . . . . . . . 1 Hits 1333 | . 17 8 . 17 6 41 27 73 7 43 119 71 . 48 3 44 . 15 232 351 211 Melee 25 | . . . . . . . . 1 . . 3 . . 4 . 4 . 8 4 1 . Projectile 1308 | . 17 8 . 17 6 41 27 72 7 43 116 71 . 44 3 40 . 7 228 350 211 AOE 25 | . 2 . . 12 . . . . . . 6 . . 1 . 2 . . . 2 . Critical Strikes 71 | . . . . . . 2 2 4 . 2 5 3 . 4 . 3 . 2 13 17 14 Actively Blocked 40 | . . . . . . . . . . . . . . . . . . . 11 17 12 Part Disruptions 7 | . . . . . . . . 1 . . . . . . . . . . 4 1 1 Damage Taken 24422 | . 309 88 . 479 106 681 425 1026 108 668 1728 831 . 870 73 1109 13 604 4532 6001 4771 Core 2752 | . 40 27 . 93 . 197 72 91 75 72 218 100 . 107 . 225 . 126 228 537 544 Absorbed by Shields 2696 | . . . . . . 4 . 33 . . 53 98 . . . 267 5 42 265 1801 128 Redirected to Shielding 178 | . . . . . . . 72 . . . . . . . . . . . . . 106 Ignored by Resistances 2099 | . . . . . . . . . . . . . . 67 . . . . . 1368 664 Regen/Repaired (Parts) 1144 | . 137 . . . . . 9 . . 227 193 . . . . . . . 345 233 . Core Remaining (%) 76 | 100 . . . 70 . . . . . 54 . 60 . 88 . 79 . 89 83 72 68 Volleys Fired 819 | 6 32 6 . 14 6 71 45 129 8 78 70 22 1 41 9 75 . 40 47 78 41 Largest 3 | 2 2 2 . 1 2 3 3 3 3 3 1 1 1 1 1 2 . 2 1 2 1 Hottest 165 | 40 100 40 . 45 110 165 75 81 81 141 48 48 7 48 7 80 . 80 40 150 105 Shots Fired 1402 | 12 63 12 . 15 10 161 121 311 24 195 93 22 1 39 9 94 . 52 47 81 40 Gun 1055 | 12 62 12 . 1 8 161 114 311 24 157 23 . . . . 74 . 28 19 44 5 Cannon 156 | . . . . 14 2 . . . . 31 43 8 . 37 . . . . . 12 9 Launcher 57 | . . . . . . . . . . 1 18 8 . 1 . 2 . 2 . 8 17 Special 134 | . 1 . . . . . 7 . . 6 9 6 1 1 9 18 . 22 28 17 9 Kinetic 929 | 12 62 12 . 14 2 . 114 281 24 158 43 8 . 37 . 74 . 28 19 36 5 Thermal 111 | . 1 . . . . 6 . 30 . 30 23 . . . . . . . . 12 9 Explosive 25 | . . . . . . . . . . 1 8 8 . 1 . 2 . 2 . . 3 Electromagnetic 204 | . . . . 1 8 155 . . . . 10 . . . . . . . . 16 14 Robot Hit Streak 73 | 6 13 4 . 10 8 51 20 73 8 11 5 5 2 4 6 8 . 6 8 30 9 Robot Miss Streak 6 | 3 2 1 . 1 1 1 3 3 2 5 4 3 . 6 1 3 . 4 2 2 5 Penetration Max 4 | . . . . . . . . 1 . 1 1 . . . . 1 . 1 . 4 1 Secondary Targets 10 | . . 1 . . . 3 2 4 . . . . . . . . . . . . . Max Gunslinging Chain 1 | . . 1 . . . 1 1 1 . . . . . . . . . . . . . Autonomous 60 | . . . . . . 6 . 30 . . 24 . . . . . . . . . . Shots Hit Robots 1350 | 6 42 9 . 13 8 129 87 226 17 109 63 27 2 39 14 58 . 30 157 193 121 Core Hits 694 | 4 12 7 . 6 4 47 33 98 6 60 66 25 1 23 4 29 . 12 44 120 93 Critical Kills 35 | . . . . . . . 1 . . 6 1 . . 6 . 4 . . 2 15 . Critical Parts Destroyed 52 | . . . . . . . . 4 . 8 4 2 . 3 . 4 . 2 4 21 . Critical Strikes 143 | . . . . . 1 1 1 4 . 16 7 4 . 13 . 12 . 4 23 52 5 Burn 1 | . . . . . . . . . . 1 . . . . . . . . . . . Destroy 83 | . . . . . . . 1 4 . 15 7 2 . 9 . 10 . 3 6 26 . Corrupt 3 | . . . . . 1 1 . . . . . . . . . . . . . 1 . Smash 10 | . . . . . . . . . . . . . . . . . . . . 10 . Sever 33 | . . . . . . . . . . . . 2 . 4 . 2 . 1 17 7 . Impale 13 | . . . . . . . . . . . . . . . . . . . . 8 5 Melee Attacks 727 | . . . . . . . 1 7 . 4 26 47 7 55 8 32 2 16 177 215 130 Impact 41 | . . . . . . . . . . 1 . . . . . . . . . 40 . Slashing 396 | . . . . . . . 1 7 . 3 26 47 7 55 8 23 2 16 135 52 14 Piercing 290 | . . . . . . . . . . . . . . . . 9 . . 42 123 116 Sneak Attacks 112 | . . . . . . . . . . 1 7 . 1 4 4 6 . . 22 20 47 Combat Hostiles 9 | . . . . . . . . . . . . . . 4 . . . . 2 2 1 Follow-up Attacks 98 | . . . . . . . . . . . 1 6 . 8 1 3 . . 33 33 13 Martial Strikes 1 | . . . . . . . . . . . . . . . . . . . . . 1 Damage Inflicted 44418 | 98 544 129 . 253 170 2170 1450 4316 260 2568 4645 1795 90 1786 433 1540 . 510 5398 8019 8244 Guns 12846 | 95 539 117 . . 132 2140 1450 4316 260 1978 474 . . . . 427 . 110 111 638 59 Cannons 1577 | . . . . 235 38 . . . . 439 487 78 . 213 . . . . 87 . . Explosions 9445 | . . . . . . 30 . . . 22 2741 960 . 187 . 422 . 162 . 1526 3395 Melee 20412 | . . . . . . . . . . 129 932 757 90 1386 433 691 . 238 5200 5855 4701 Ramming 138 | 3 5 12 . 18 . . . . . . 11 . . . . . . . . . 89 Kinetic 10412 | 95 539 117 . 235 38 . 1450 3459 260 2134 487 78 . 213 . 427 . 110 198 513 59 Thermal 1959 | . . . . . . 207 . 857 . 283 612 . . . . . . . . . . Explosive 5241 | . . . . . . . . . . 22 1304 960 . 187 . 422 . 162 . 250 1934 Electromagnetic 6256 | . . . . . 132 1963 . . . . 1299 . . . . . . . . 1401 1461 Impact 1696 | . . . . . . . . . . 63 . . . . . . . . . 1633 . Slashing 10231 | . . . . . . . . . . 66 932 757 90 1386 433 388 . 238 4193 1180 568 Piercing 8485 | . . . . . . . . . . . . . . . . 303 . . 1007 3042 4133 Highest Corruption 24 | . . . . 2 . 10 11 12 . . 3 7 . 3 . 1 . . 17 24 11 Average Corruption 6 | . . . . 2 . 9 7 5 . . 2 5 . 2 . 1 . . 4 11 7 Corruption Purged 25 | . . . . . . . . . . . . . . . . . . . 8 10 7 Corruption Blocked . | . . . . . . . . . . . . . . . . . . . . . . Effects 278 | . . . . 1 . 38 20 47 . . 8 29 . 5 . 5 . . 20 66 39 Message Errors 64 | . . . . . . 8 3 10 . . 5 9 . . . 1 . . 6 13 9 Matter Fused 80 | . . . . 1 . 11 5 11 . . 1 7 . 4 . 1 . . 3 21 15 Heat Flow Errors 35 | . . . . . . 6 3 3 . . 1 4 . 1 . . . . 2 12 3 Energy Discharges 31 | . . . . . . 3 1 4 . . . 2 . . . . . . 5 11 5 Parts Rejected 4 | . . . . . . 2 1 . . . . . . . . . . . . . 1 Parts Fused 2 | . . . . . . . . 1 . . . . . . . . . . . 1 . Data Loss (minor) 26 | . . . . . . 3 5 1 . . 1 5 . . . 2 . . 2 4 3 Data Loss (major) 15 | . . . . . . 3 1 5 . . . 1 . . . . . . 2 2 1 Misfires 5 | . . . . . . . . 4 . . . . . . . 1 . . . . . Alerts 7 | . . . . . . 1 1 2 . . . 1 . . . . . . . 1 1 Weapon Failures 9 | . . . . . . 1 . 6 . . . . . . . . . . . 1 1 Overload Shots . | . . . . . . . . . . . . . . . . . . . . . . Overflow Damage 2553 | . . . . . . 1 . . . 49 194 72 . 205 76 . . . 365 1048 543 Projectiles 10 | . . . . . . . . . . 10 . . . . . . . . . . . Explosions 256 | . . . . . . 1 . . . . 51 37 . 41 . . . . . 5 121 Melee 2287 | . . . . . . . . . . 39 143 35 . 164 76 . . . 365 1043 422 Knockbacks 24 | . . . . 3 1 . . . . 4 1 . . 2 . . . . 1 11 1 Impact 14 | . . . . 1 . . . . . 1 . . . . . . . . . 11 1 Kinetic 8 | . . . . 2 1 . . . . 2 1 . . 1 . . . . 1 . . Secondary 2 | . . . . . . . . . . 1 . . . 1 . . . . . . . Self-Inflicted Damage 778 | . . . . . . 39 . . . . . 32 . . . 111 . . . 256 340 Shots 33 | . . . . . . 1 . . . . . 1 . . . 2 . . . 19 10 Rammed 10 | 1 4 2 . 3 . . . . . . . . . . . . . . . . . Targets Rammed 22 | 1 4 2 . 4 . . . . . . 3 1 . . . 1 . . . . 6 Kicked 11 | . . . . . . . . . . . 3 1 . . . 1 . . . . 6 Crushed 1 | . . . . 1 . . . . . . . . . . . . . . . . . Highest Temperature 575 | . 20 4 . 24 171 575 223 264 30 108 207 219 . 160 . 60 . . 286 461 288 Average Temperature 82 | . 10 2 . 10 73 113 33 51 17 27 58 58 . 50 . 18 . . 72 133 89 Received Heat Transfer 2667 | . 102 36 . . 18 204 198 333 9 351 360 99 . 339 18 60 . . 201 189 150 Effects 11 | . . . . . . 2 1 . . . . . . . . . . . 3 3 2 Shutdowns 1 | . . . . . . 1 . . . . . . . . . . . . . . . Energy Bleed 4 | . . . . . . . 1 . . . . . . . . . . . . 1 2 Interference 4 | . . . . . . . . . . . . . . . . . . . 3 1 . Short Circuit 1 | . . . . . . . . . . . . . . . . . . . . 1 . Damage (core) 1 | . . . . . . 1 . . . . . . . . . . . . . . . Siege Activations . | . . . . . . . . . . . . . . . . . . . . . . Martial Activations 1 | . . . . . . . . . . . . . . . . . . . . . 1 Total Turns 43 | . . . . . . . . . . . . . . . . . . . . . 43 Longest Duration 43 | . . . . . . . . . . . . . . . . . . . . . 43 Shielding Activations . | . . . . . . . . . . . . . . . . . . . . . . Robots Disrupted 1 | . . . . . . . . . . . . . . . . . . . . . 1 Combat Hostiles . | . . . . . . . . . . . . . . . . . . . . . . Robots Corrupted 31 | . . . . . . 4 . . . 1 3 . . . . . . . . 14 9 Combat Hostiles 27 | . . . . . . 3 . . . 1 3 . . . . . . . . 12 8 Parts Fried 63 | . . . . . . 21 . . . 1 6 . . . . . . . . 24 11 Impact Corruptions 24 | . . . . . . . . . . 1 . . . . . . . . . 22 1 Robots Melted . | . . . . . . . . . . . . . . . . . . . . . . Combat Hostiles . | . . . . . . . . . . . . . . . . . . . . . . Parts Melted 4 | . . . . . . 1 . 2 . . 1 . . . . . . . . . . Heat Transferred 2927 | . . . . . . 272 . 1036 . 740 879 . . . . . . . . . . Parts Sabotaged 1 | . . . . . . . . . . . . . . . . . . . 1 . . Parts Stolen . | . . . . . . . . . . . . . . . . . . . . . . Parts Stripped 7 | . . . . . . . . . . . . . . . . . . . . 7 . Power Chain Reactions 7 | . . . . . . 2 . . . . 4 . . . . . . . . . 1 Alert | -11 -10 -10 -10 -9 -8 -8 -8 -8 -8 -8 -7 -7 -6 -6 -5 -5 -4 -4 -3 -2 -1 ------- Run | Yrd Mat Min Exi Min Mat Gar Mat Gar Mat Sto Fac Gar Fac Gar Fac Gar Fac Gar Res Res Acc Maximum Alert Level 4 | . . . . . . 3 2 4 3 2 3 4 3 4 3 3 2 4 2 3 3 Low Security (%) 19 | 100 100 100 . 100 100 13 42 10 . . 18 . . . . 6 . . 31 12 . Level 1 24 | . . . . . . 11 30 8 . 83 23 . . . 49 32 . 4 46 53 . Level 2 28 | . . . . . . 44 26 31 34 16 56 34 76 34 28 40 100 29 21 23 21 Level 3 20 | . . . . . . 30 . 21 65 . 1 14 23 36 21 20 . 60 . 10 78 Level 4 6 | . . . . . . . . 26 . . . 50 . 29 . . . 5 . . . Level 5 . | . . . . . . . . . . . . . . . . . . . . . . High Security . | . . . . . . . . . . . . . . . . . . . . . . Max Security . | . . . . . . . . . . . . . . . . . . . . . . Peak Influence 1387 | 10 80 85 . 50 80 1091 568 1371 810 546 745 1387 728 1387 728 1068 560 1165 654 1024 1041 Initial 728 | . . . . . 1 . 531 80 668 341 115 444 728 429 728 151 560 368 654 312 592 Average 510 | . 19 15 . 4 32 627 252 766 732 315 416 967 669 836 474 504 523 835 285 403 840 Influence Increases 16589 | 20 179 115 . 67 165 1191 871 1461 312 959 1334 1143 15 1098 33 1377 96 997 1363 2227 1566 Destroy 0b10 Robot/C 8440 | . 100 80 . 40 80 700 320 900 180 520 680 540 . 520 . 560 40 380 660 1280 860 Destroy 0b10 Robot/NC 500 | 20 15 . . 5 . . 20 25 15 110 70 5 . 5 20 . . . 35 90 65 Destroy Leader 1250 | . 14 20 . 10 20 30 116 50 72 144 134 50 . 30 2 50 10 20 128 236 114 Allied During Kill 1736 | . . . . . 14 32 9 86 38 3 203 144 . 103 3 306 42 322 134 147 150 Trap Triggered on 0b10 30 | . . . . . . . . . . . . . . . . . . . . . 30 Successful Hack 376 | . 4 . . 12 21 28 5 12 . 16 26 14 . . 8 21 . 35 52 72 50 Disable Machine 525 | . 30 . . . 15 30 15 . . 75 90 60 15 30 . 15 . . 45 15 90 Anti-Garrison Action 1350 | . . . . . . 300 . 250 . . . 150 . 250 . 300 . 100 . . . Destroy Structure 910 | . 1 . . . . 56 2 63 7 46 71 105 . 10 . 80 4 65 76 192 132 Partial Spotted 30 | . . . . . . . . . . . . . . . . . . . . . 30 Lose Combat Pursuer 930 | . 15 15 . . 15 15 . 75 . 45 60 75 . 150 . 45 . 75 105 195 45 Miscellaneous 512 | . . . . . . . 384 . . . . . . . . . . . 128 . . Influence Decreases 15561 | 20 179 115 . 63 169 100 1838 214 873 1515 953 391 789 324 1204 525 638 358 1971 1796 1526 Entered New Map 5494 | . . . . . 3 . 560 44 703 469 139 191 659 184 659 65 508 158 511 245 396 Time Decay 4377 | 20 159 115 . 53 151 . 463 . 110 571 474 . 130 . 130 . 90 . 595 686 630 Search Patrol Dispatched 100 | . . . . . . . 100 . . . . . . . . . . . . . . Lost Part 960 | . 20 . . 10 . 40 20 40 . 40 40 40 . 40 . 20 . 20 130 210 290 Lost Ally 2455 | . . . . . 15 60 20 130 60 10 150 160 . 100 40 440 40 180 460 380 210 Purge Threat 2175 | . . . . . . . 675 . . 425 150 . . . 375 . . . 275 275 . Squads Dispatched 61 | . . . . . 3 . 1 . 2 3 13 . . . 2 . . . 8 17 12 Investigation 8 | . . . . . 2 . . . . . 1 . . . 1 . . . 2 1 1 Extermination 14 | . . . . . . . . . . . 3 . . . . . . . 3 5 3 Reinforcement 24 | . . . . . . . 1 . 2 3 5 . . . . . . . 3 7 3 Assault 8 | . . . . . . . . . . . 3 . . . . . . . . 1 4 Garrison 7 | . . . . . 1 . . . . . 1 . . . 1 . . . . 3 1 Intercept . | . . . . . . . . . . . . . . . . . . . . . . Searches Triggered 1 | . . . . . . . 1 . . . . . . . . . . . . . . Construction Impeded 6 | . . . . . . . . . . . 2 . . . . . . . . 2 2 Haulers Reinforced 3 | . . . . . . . . . . . 2 . . . . . . . . . 1 Active Scanning Responses . | . . . . . . . . . . . . . . . . . . . . . . Cargo Convoy Interrupts 1 | . . . . . . . . . . . . . . . . . . . 1 . . Alert ID Control Effect 17 | . . . . . . . . . . . . . . . . . . . 15 1 1 Stealth | -11 -10 -10 -10 -9 -8 -8 -8 -8 -8 -8 -7 -7 -6 -6 -5 -5 -4 -4 -3 -2 -1 --------- Run | Yrd Mat Min Exi Min Mat Gar Mat Gar Mat Sto Fac Gar Fac Gar Fac Gar Fac Gar Res Res Acc Distress Signals 28 | . 3 . . . . . 2 . 4 1 1 1 . . . . 1 . 2 8 5 Communications Jammed 83 | . . . . . . . . . . . . . . . . . . . 8 75 . Distress Signals 72 | . . . . . . . . . . . . . . . . . . . 8 64 . Times Spotted 595 | . 11 4 . 4 6 33 25 42 11 37 38 28 . 25 5 41 2 26 77 118 62 Peak Tracking Total 13 | . 5 3 . 3 3 4 4 5 5 5 8 5 . 6 2 6 2 12 13 7 8 Tactical Retreats 42 | . 1 1 . . 1 1 . 3 . 3 3 4 . 5 . 2 . 2 4 9 3 Traps | -11 -10 -10 -10 -9 -8 -8 -8 -8 -8 -8 -7 -7 -6 -6 -5 -5 -4 -4 -3 -2 -1 ------- Run | Yrd Mat Min Exi Min Mat Gar Mat Gar Mat Sto Fac Gar Fac Gar Fac Gar Fac Gar Res Res Acc Traps Triggered 34 | . . . . . . 5 . 6 . 1 . 4 . 4 . 6 . 2 2 2 2 Indirectly 1 | . . . . . . . . . . . . . . . . . . . . . 1 Trap Hack Attempts 63 | . . . . . . . . . . . . . . . . . . . . . 63 Triggered . | . . . . . . . . . . . . . . . . . . . . . . Disarmed . | . . . . . . . . . . . . . . . . . . . . . . Reprogrammed 6 | . . . . . . . . . . . . . . . . . . . . . 6 Reused 3 | . . . . . . . . . . . . . . . . . . . . . 3 Traps Extracted . | . . . . . . . . . . . . . . . . . . . . . . Installed . | . . . . . . . . . . . . . . . . . . . . . . Triggered 3 | . . . . . . . . . . . . . . . . . . . . . 3 Machines | -11 -10 -10 -10 -9 -8 -8 -8 -8 -8 -8 -7 -7 -6 -6 -5 -5 -4 -4 -3 -2 -1 ---------- Run | Yrd Mat Min Exi Min Mat Gar Mat Gar Mat Sto Fac Gar Fac Gar Fac Gar Fac Gar Res Res Acc Machines Disabled 56 | . 2 . . . 1 6 1 4 . 5 6 7 1 6 . 5 . 2 3 1 6 Max in Single Turn 3 | . 1 . . . . 2 1 1 . 1 2 3 1 1 . 1 . 1 1 . 1 Garrison Access 8 | . . . . . . . . . . . . . . . . . . . 2 3 3 Garrison Relay 17 | . . . . . . 2 . 3 . . . 3 . 3 . 3 . 3 . . . Phase Generator 3 | . . . . . . 1 . . . . . 1 . 1 . . . . . . . Machines Repaired . | . . . . . . . . . . . . . . . . . . . . . . Machines Dismantled . | . . . . . . . . . . . . . . . . . . . . . . Machines Sabotaged . | . . . . . . . . . . . . . . . . . . . . . . Overloaded Fab Kills . | . . . . . . . . . . . . . . . . . . . . . . Hacking | -11 -10 -10 -10 -9 -8 -8 -8 -8 -8 -8 -7 -7 -6 -6 -5 -5 -4 -4 -3 -2 -1 --------- Run | Yrd Mat Min Exi Min Mat Gar Mat Gar Mat Sto Fac Gar Fac Gar Fac Gar Fac Gar Res Res Acc Machines Accessed 92 | . 4 . 2 1 5 5 7 3 . 7 6 2 2 1 2 3 1 4 12 12 13 Terminals 54 | . 3 . . 1 3 5 6 3 . 6 2 2 . 1 . 3 . 4 3 7 5 Fabricators 4 | . . . . . . . . . . . 1 . . . . . . . 1 . 2 Repair Stations 6 | . 1 . . . . . . . . 1 . . . . . . . . 1 1 2 Recycling Units 2 | . . . . . . . . . . . . . 1 . 1 . . . . . . Scanalyzers 10 | . . . . . 1 . . . . . 2 . . . . . . . 5 1 1 Garrison Access 14 | . . . . . 1 . 1 . . . 1 . 1 . 1 . 1 . 2 3 3 Total Hacks 193 | . 11 . 2 5 14 8 16 8 . 21 14 4 3 2 3 5 2 7 24 22 22 Successful 89 | . 5 . 2 2 6 3 5 2 . 15 5 1 1 . 3 2 1 3 13 11 9 Failed 101 | . 5 . . 3 7 5 11 6 . 6 9 3 2 2 . 3 1 4 10 11 13 Catastrophic 29 | . 2 . . . 3 2 . 1 . . 4 1 1 1 . 1 1 . 5 4 3 Database Lockouts 3 | . 1 . . . 1 . . . . . . . . . . . . . 1 . . Manual 47 | . 4 . 1 5 9 . 8 . . 4 6 . 1 . 1 . 1 . 2 2 3 Terminals 114 | . 8 . . 5 8 8 15 8 . 13 5 4 . 2 . 5 . 7 4 12 10 Fabricators 5 | . . . . . . . . . . . 2 . . . . . . . 1 . 2 Repair Stations 15 | . 3 . . . . . . . . 8 . . . . . . . . 1 1 2 Recycling Units 2 | . . . . . . . . . . . . . 1 . 1 . . . . . . Scanalyzers 27 | . . . . . 3 . . . . . 5 . . . . . . . 14 3 2 Garrison Access 28 | . . . . . 3 . 1 . . . 2 . 2 . 2 . 2 . 4 6 6 Terminal Hacks 36 | . 3 . 2 2 2 3 4 2 . 6 1 1 . . . 2 . 3 1 3 1 Record 1 | . . . 1 . . . . . . . . . . . . . . . . . . Robot Analysis 5 | . 1 . . 2 1 . . . . . . . . . . . . . . 1 . Open Door 7 | . . . . . . . . 1 . 4 . . . . . 1 . 1 . . . Branch Access Points 1 | . . . . . 1 . . . . . . . . . . . . . . . . Emergency Access Points 4 | . . . . . . 1 . . . . . 1 . . . 1 . 1 . . . Unreport Threat 4 | . . . . . . . 2 . . 1 1 . . . . . . . . . . Locate Traps 5 | . 2 . . . . . . . . 1 . . . . . . . . . 1 1 Zone Layout 4 | . . . . . . . 2 . . . . . . . . . . . 1 1 . Garrison Registry 2 | . . . . . . 1 . . . . . . . . . . . 1 . . . Patrol Navigation 1 | . . . . . . 1 . . . . . . . . . . . . . . . Security Stations 1 | . . . . . . . . 1 . . . . . . . . . . . . . Proto ID Catalog 1 | . . . 1 . . . . . . . . . . . . . . . . . . Fabricator Hacks 1 | . . . . . . . . . . . 1 . . . . . . . . . . Build 1 | . . . . . . . . . . . 1 . . . . . . . . . . Repair Station Hacks 11 | . 2 . . . . . . . . 8 . . . . . . . . . . 1 Scan Component 5 | . 1 . . . . . . . . 4 . . . . . . . . . . . Repair 5 | . 1 . . . . . . . . 4 . . . . . . . . . . . Refit 1 | . . . . . . . . . . . . . . . . . . . . . 1 Recycling Unit Hacks 1 | . . . . . . . . . . . . . . . 1 . . . . . . Retrieve Components 1 | . . . . . . . . . . . . . . . 1 . . . . . . Scanalyzer 11 | . . . . . 1 . . . . . 2 . . . . . . . 7 1 . Insert Component 2 | . . . . . . . . . . . . . . . . . . . 2 . . Retrieve Study 9 | . . . . . 1 . . . . . 2 . . . . . . . 5 1 . Garrison Access Hacks 22 | . . . . . 1 . 1 . . . 1 . 1 . 1 . 1 . 4 6 6 Unlock Access 6 | . . . . . 1 . 1 . . . 1 . 1 . 1 . 1 . . . . Seal Access 8 | . . . . . . . . . . . . . . . . . . . 2 3 3 Coupler Status 8 | . . . . . . . . . . . . . . . . . . . 2 3 3 Unauthorized Hacks 7 | . . . . . 2 . . . . 1 . . . . 1 . . . 1 1 1 Terminals 4 | . . . . . 1 . . . . 1 . . . . . . . . . 1 1 Botnet 4 | . . . . . 1 . . . . 1 . . . . . . . . . 1 1 Fabricators . | . . . . . . . . . . . . . . . . . . . . . . Repair Stations 1 | . . . . . . . . . . . . . . . . . . . 1 . . Patch 1 | . . . . . . . . . . . . . . . . . . . 1 . . Recycling Units . | . . . . . . . . . . . . . . . . . . . . . . Scanalyzers . | . . . . . . . . . . . . . . . . . . . . . . Garrison Access 2 | . . . . . 1 . . . . . . . . . 1 . . . . . . Reprogram 2 | . . . . . 1 . . . . . . . . . 1 . . . . . . Data Cores Recovered 1 | . . . . . . . . . . . . . . . . . . . 1 . . Used . | . . . . . . . . . . . . . . . . . . . . . . Hacking Detections 79 | . 4 . . 1 5 3 6 2 . 6 6 2 2 1 1 3 1 2 11 11 12 Full Trace Events 8 | . . . . . 2 1 . . . . 1 . . . . 1 . . 1 1 1 Feedback Events . | . . . . . . . . . . . . . . . . . . . . . . Feedback Blocked . | . . . . . . . . . . . . . . . . . . . . . . Robot Schematics Acquired . | . . . . . . . . . . . . . . . . . . . . . . Robots Built 3 | . . . . . . . . . . . 3 . . . . . . . . . . Authchips . | . . . . . . . . . . . . . . . . . . . . . . Time 67 | . . . . . . . . . . . 67 . . . . . . . . . . Total Robot Build Rating 12 | . . . . . . . . . . . 12 . . . . . . . . . . Part Schematics Acquired . | . . . . . . . . . . . . . . . . . . . . . . Parts Built . | . . . . . . . . . . . . . . . . . . . . . . Authchips . | . . . . . . . . . . . . . . . . . . . . . . Time . | . . . . . . . . . . . . . . . . . . . . . . Total Part Build Rating . | . . . . . . . . . . . . . . . . . . . . . . Part Studies Acquired 9 | . . . . . 1 . . . . . 2 . . . . . . . 5 1 . Parts Repaired 5 | . 1 . . . . . . . . 4 . . . . . . . . . . . Time 220 | . 26 . . . . . . . . 194 . . . . . . . . . . . Parts Recycled . | . . . . . . . . . . . . . . . . . . . . . . Recycled Matter . | . . . . . . . . . . . . . . . . . . . . . . Retrieved Matter . | . . . . . . . . . . . . . . . . . . . . . . Retrieved Components . | . . . . . . . . . . . . . . . . . . . . . . Parts Scanalyzed 1 | . . . . . . . . . . . . . . . . . . . 1 . . Part Schematics Acquired . | . . . . . . . . . . . . . . . . . . . . . . Parts Damaged . | . . . . . . . . . . . . . . . . . . . . . . Bothacking | -11 -10 -10 -10 -9 -8 -8 -8 -8 -8 -8 -7 -7 -6 -6 -5 -5 -4 -4 -3 -2 -1 ------------ Run | Yrd Mat Min Exi Min Mat Gar Mat Gar Mat Sto Fac Gar Fac Gar Fac Gar Fac Gar Res Res Acc Used RIF Installer 6 | . . . . . . 1 . 1 . . . 1 . 1 . 1 . 1 . . . Hotswap 1 | . . . . . . . . . . . . 1 . . . . . . . . . Command Fork 1 | . . . . . . 1 . . . . . . . . . . . . . . . Zone Cloak 2 | . . . . . . . . . . . . . . 1 . 1 . . . . . Alert ID Control 1 | . . . . . . . . . . . . . . . . . . 1 . . . Program Shield 1 | . . . . . . . . 1 . . . . . . . . . . . . . Robots Hacked 73 | . . . . . . . 3 . . 2 4 5 . 1 3 15 . 12 13 9 6 Non-combat 12 | . . . . . . . 3 . . 2 1 . . . 1 . . . 1 3 1 Combat 61 | . . . . . . . . . . . 3 5 . 1 2 15 . 12 12 6 5 Robot Hacks Applied 91 | . . . . . . . 7 . . 4 5 5 . 1 8 15 . 12 15 12 7 parse_system 1 | . . . . . . . . . . . . . . 1 . . . . . . . map_walls 1 | . . . . . . . . . . 1 . . . . . . . . . . . purge_threat 12 | . . . . . . . 3 . . 2 . . . . 3 . . . 2 2 . locate_traps 1 | . . . . . . . . . . 1 . . . . . . . . . . . block_reporting 1 | . . . . . . . . . . . . . . . . . . . . 1 . summon_haulers 2 | . . . . . . . 1 . . . . . . . 1 . . . . . . map_route 1 | . . . . . . . . . . . . . . . . . . . . . 1 find_garrison 3 | . . . . . . . . . . . 1 . . . 1 . . . . . 1 scatter_targeting 1 | . . . . . . . . . . . . . . . 1 . . . . . . overload_power 1 | . . . . . . . . . . . . . . . . . . . . . 1 amplify_resonance 5 | . . . . . . . . . . . . . . . . . . 4 1 . . wipe_record 1 | . . . . . . . . . . . . . . . . . . . 1 . . reboot_system 3 | . . . . . . . . . . . . . . . . 3 . . . . . overwrite_iff 1 | . . . . . . . . . . . . . . . . . . . 1 . . formatsys_low 8 | . . . . . . . 3 . . . 1 . . . . . . . 1 3 . formatsys_high 48 | . . . . . . . . . . . 3 5 . . 2 12 . 8 9 5 4 formatsys_deep 1 | . . . . . . . . . . . . . . . . . . . . 1 . Relay Couplers Released 83 | . . . . . . 11 . 12 . . . 15 . 10 . 13 . 11 4 3 4 Machine Destruction 77 | . . . . . . 8 . 12 . . . 12 . 10 . 13 . 11 4 3 4 Programmers 6 | . . . . . . 3 . . . . . 3 . . . . . . . . . Attached 17 | . . . . . . . 1 . . 1 2 2 . . 2 2 . 1 3 2 1 Fabnet Peak Effective % . | . . . . . . . . . . . . . . . . . . . . . . Robots Rewired 27 | . . . . . . 3 . 6 . . . 4 1 . . 10 . 2 . . 1 Allies Hacked 6 | . . . . . . 1 . 1 . . . . . . . . . . . 2 2 Hacks Repelled 1 | . . . . . . . . . . . . . . . . . . . . 1 . Allies | -11 -10 -10 -10 -9 -8 -8 -8 -8 -8 -8 -7 -7 -6 -6 -5 -5 -4 -4 -3 -2 -1 -------- Run | Yrd Mat Min Exi Min Mat Gar Mat Gar Mat Sto Fac Gar Fac Gar Fac Gar Fac Gar Res Res Acc Total Allies 162 | . . . . 3 2 5 9 6 1 . 12 11 1 3 4 30 . 12 21 29 13 Largest Group 11 | . . . . 3 4 3 9 7 4 2 11 9 4 5 2 10 8 10 10 5 4 Highest-Rated Group 549 | . . . . 40 42 178 134 124 107 107 316 282 125 189 98 495 370 426 491 438 549 Highest-Rated Ally 219 | . . . . 16 16 178 26 39 85 85 32 39 32 95 49 99 89 89 142 219 219 Total Orders 55 | . . . . . . . 8 15 . 4 3 . . 8 . 10 . . 3 2 2 STAY 36 | . . . . . . . 4 9 . 2 1 . . 7 . 9 . . 3 . 1 FOLLOW 14 | . . . . . . . 3 6 . 2 1 . . 1 . 1 . . . . . AID 4 | . . . . . . . 1 . . . 1 . . . . . . . . 2 . EXPLORE 1 | . . . . . . . . . . . . . . . . . . . . . 1 Ally Attacks 894 | . . . . . 12 47 10 51 39 5 32 54 . 48 8 111 15 102 160 110 90 Total Damage 27353 | . . . . . 119 776 129 868 656 210 1311 1551 . 1509 244 2428 272 2813 5200 5110 4157 Kills 167 | . . . . . 3 7 1 9 9 2 13 13 . 9 . 15 2 16 31 16 21 Allies Corrupted 7 | . . . . . . 1 . . . . . . . . . 1 . . 3 . 2 Allies Melted 3 | . . . . . . . . . . . . . . . . 1 . . 1 1 . X0-1V1 Amusement Gains 312 | . 15 . . 70 . 30 10 . . 10 40 . . 10 . 10 . 21 1 39 56 Good Acts 174 | . . 1 . 3 2 14 8 4 2 8 8 13 3 12 3 8 . 7 30 26 22 Bad Acts 66 | . . 1 . 2 . 7 2 10 . 2 4 3 . 3 2 5 . 1 5 17 2 Intel | -11 -10 -10 -10 -9 -8 -8 -8 -8 -8 -8 -7 -7 -6 -6 -5 -5 -4 -4 -3 -2 -1 ------- Run | Yrd Mat Min Exi Min Mat Gar Mat Gar Mat Sto Fac Gar Fac Gar Fac Gar Fac Gar Res Res Acc Active Infowar (turns) 4251 | 35 186 . . . 2 . . . . . . . . . 133 526 192 153 1416 1357 251 Sensors 4 | . . . . . 2 . . . . . . . . . . . . . . . 2 Seismic 221 | 35 186 . . . . . . . . . . . . . . . . . . . . Cloaking 249 | . . . . . . . . . . . . . . . . . . . . . 249 Jamming 3777 | . . . . . . . . . . . . . . . 133 526 192 153 1416 1357 . Robot Analysis Total 5 | . 1 . . 2 1 . . . . . . . . . . . . . . 1 . Derelict Logs Recovered 2 | . . 1 . 1 . . . . . . . . . . . . . . . . . Drone Launches 1 | . . . . . . . . . . . . . . . . . . . . . 1 Drone Recoveries . | . . . . . . . . . . . . . . . . . . . . . . Exploration | -11 -10 -10 -10 -9 -8 -8 -8 -8 -8 -8 -7 -7 -6 -6 -5 -5 -4 -4 -3 -2 -1 ------------- Run | Yrd Mat Min Exi Min Mat Gar Mat Gar Mat Sto Fac Gar Fac Gar Fac Gar Fac Gar Res Res Acc Turns Passed 22909 | 141 646 620 527 467 375 1724 1305 1642 224 1725 1212 1109 260 1304 279 1506 192 837 1883 2740 2191 Spaces Moved 12395 | 67 261 366 327 265 201 764 723 843 125 885 632 731 53 738 197 904 139 648 1067 1376 1083 Core 4 | 4 . . . . . . . . . . . . . . . . . . . . . Treads 2320 | 63 261 366 327 265 201 764 73 . . . . . . . . . . . . . . Legs 7568 | . . . . . . . . . . . 632 731 53 738 197 904 139 648 1067 1376 1083 Wheels 2503 | . . . . . . . 650 843 125 885 . . . . . . . . . . . Hover . | . . . . . . . . . . . . . . . . . . . . . . Flight . | . . . . . . . . . . . . . . . . . . . . . . Fastest Speed 50 | 50 160 160 160 160 160 160 135 110 115 115 105 108 108 108 108 100 100 100 100 110 111 Average Speed 125 | 153 160 160 160 160 160 163 146 130 116 134 115 111 108 112 109 104 100 100 105 114 123 Slowest Speed 240 | 160 160 160 160 160 160 240 240 155 125 185 175 188 108 117 110 111 100 100 173 181 236 Overloaded Moves 2 | . . . . . . . . . . . . . . . . . . . . . 2 Propulsion Burnouts . | . . . . . . . . . . . . . . . . . . . . . . Robots Hopped . | . . . . . . . . . . . . . . . . . . . . . . Potential Cave-ins . | . . . . . . . . . . . . . . . . . . . . . . Cave-ins Triggered 1 | . . . . . . . . . . . . . . . . . . . . 1 . Exploration Rate (%) 48 | 3 44 65 70 61 17 83 55 84 14 89 21 92 1 90 5 84 5 66 37 46 38 Regions Visited 21 Branch Regions 4 Pre-discovered Areas 3 | . . . 1 1 . . . . . 1 . . . . . . . . . . . Known Exits Taken 9 | . . . . 1 1 . 1 . 1 1 1 . 1 . 1 . 1 . . . . Unknown Exits Taken 6 | 1 1 1 1 . . . . . . . . . . . . . . . 1 1 . Scrap Searched 2 | . . . . 2 . . . . . . . . . . . . . . . . . Spaces Dug 146 | . . . . . . . . 1 . 16 13 1 . 5 . 45 2 24 10 17 12 Terrain Destroyed 490 | . . . . . . 85 . 7 2 36 95 53 . 13 . 49 2 25 10 66 47 Melee 52 | . . . . . . . . 1 . . 7 1 . 1 . 2 2 2 10 16 10 Projectile 75 | . . . . . . . . 5 2 20 19 3 . 5 . 4 . . . 12 5 AOE 357 | . . . . . . 85 . . . 16 69 49 . 7 . 41 . 21 . 37 32 Terrain Rammed . | . . . . . . . . . . . . . . . . . . . . . . Walls Destroyed . | . . . . . . . . . . . . . . . . . . . . . . Machines Disabled . | . . . . . . . . . . . . . . . . . . . . . . Actions | -11 -10 -10 -10 -9 -8 -8 -8 -8 -8 -8 -7 -7 -6 -6 -5 -5 -4 -4 -3 -2 -1 --------- Run | Yrd Mat Min Exi Min Mat Gar Mat Gar Mat Sto Fac Gar Fac Gar Fac Gar Fac Gar Res Res Acc Total 17811 | 89 422 390 331 291 246 1112 901 1151 185 1265 999 940 244 1089 249 1338 189 783 1638 2247 1712 Wait 2652 | 3 106 4 . 1 14 203 97 50 50 239 195 65 176 201 23 170 46 29 246 442 292 Move 12374 | 66 260 365 326 264 200 763 722 842 124 884 632 730 52 737 196 903 139 647 1065 1375 1082 Hop . | . . . . . . . . . . . . . . . . . . . . . . Pick Up 202 | 6 7 5 2 2 10 17 5 12 . 8 11 9 4 9 . 13 . 9 25 30 18 Fast Attach 154 | 7 4 1 . 1 3 11 7 8 2 15 6 5 . 9 2 12 . 1 26 19 15 Attach 130 | . 1 1 . 2 4 6 1 9 . 3 11 5 1 2 1 5 2 5 15 31 25 Detach 75 | . 2 1 . 1 1 . . 10 . 1 7 4 . 2 1 10 . 1 14 11 9 Swap 264 | . 2 . 1 2 2 6 10 12 . 10 30 17 2 14 7 24 . 13 36 45 31 Drop 192 | . 4 5 2 . 6 20 10 13 1 16 12 8 2 11 4 13 . 6 24 22 13 Fire 819 | 6 32 6 . 14 6 71 45 129 8 78 70 22 1 41 9 75 . 40 47 78 41 Melee 573 | . . . . . . . 1 7 . 3 23 32 6 43 5 27 2 16 132 163 113 Ram . | . . . . . . . . . . . . . . . . . . . . . . Kick 10 | . . . . . . . . . . . 2 1 . . . 1 . . . . 6 Crush 11 | 1 4 2 . 4 . . . . . . . . . . . . . . . . . Escape Stasis 91 | . . . . . . 2 . 39 . 8 . 14 . 20 . 4 . 3 1 . . Rewire 177 | . . . . . . 13 3 20 . . . 28 . . 1 81 . 13 7 7 4 Trap 63 | . . . . . . . . . . . . . . . . . . . . . 63 Miscellaneous 24 | . . . . . . . . . . . . . . . . . . . . 24 . Route ------- -11/Scrapyard -10/Materials (discovered 3 exits: [*Mat] / [*Min] / [*Sub]) -10/Mines -10/Exiles (discovered 2 exits: *Min x2) -9/Mines (discovered 2 exits: *Mat x2) -8/Materials (discovered 2 exits: Sto / Gar) -8/Garrison (discovered 3 exits: *Mat x3) -8/Materials (discovered 5 exits: *Fac x3 / *Sto / Gar) -8/Garrison (discovered 4 exits: *Fac x3 / [*Mat]) -8/Materials -8/Storage (discovered 2 exits: *Fac / Rec) -7/Factory (discovered 2 exits: Fac / Gar) -7/Garrison (discovered 3 exits: *Fac x3) -6/Factory -6/Garrison (discovered 3 exits: *Fac x3) -5/Factory (discovered 2 exits: Fac / Gar) -5/Garrison (discovered 3 exits: *Fac x3) -4/Factory -4/Garrison (discovered 3 exits: *Res x3) -3/Research (discovered 2 exits: *Res / [*Arm]) -2/Research (discovered 3 exits: *Acc / *Qua x2) -1/Access To Epsilon Eridani History --------- Turn | Location | Event 8 | -11/Scrapyard | Discovered new exit (range 14) 142 | -11/Scrapyard | Entered Materials 187 | -10/Materials | Central database locked down 314 | -10/Materials | Build established: Mutant 318 | -10/Materials | Discovered new exit (range 15) 370 | -10/Materials | Repaired Lgt. Treads 534 | -10/Materials | Discovered new exit (range 7) 636 | -10/Materials | Discovered new exit (range 11) 752 | -10/Materials | Prayed at D.C.S.S. Altar Unit 788 | -10/Materials | Entered Mines 957 | -10/Mines | X0-1V1 mutated your Weapon slot to Power slot 996 | -10/Mines | Found a damaged Exp. Sensor Array with a note attached 1000 | -10/Mines | Found Prototype Device 1021 | -10/Mines | X0-1V1 activates XOMVISION 1327 | -10/Mines | Met a Derelict testing a Signal Generator 1335 | -10/Mines | Found Signal Generator 1398 | -10/Mines | Deemed a non-threat by the Exiles lab entrance 1398 | -10/Mines | Discovered new exit (range 5) 1408 | -10/Mines | Entered Exiles 1433 | -10/Exiles | Discovered new exit (range 15) 1452 | -10/Exiles | Met 8R-AWN 1475 | -10/Exiles | Met EX-HEX 1548 | -10/Exiles | Met EX-DEC 1646 | -10/Exiles | Learned location of Zion (-6) 1675 | -10/Exiles | Met EX-BIN 1697 | -10/Exiles | Aligned with FarCom system 1699 | -10/Exiles | Given EX-Vault access code 1736 | -10/Exiles | Opened EX-Vault 1745 | -10/Exiles | Found AWS/Thermal 1780 | -10/Exiles | Warned to stay clear of 0b10 Research branches 1920 | -10/Exiles | Discovered new exit (range 10) 1935 | -10/Exiles | Left Exiles lab with AWS/Thermal 1935 | -10/Exiles | Entered Mines 2101 | -9/Mines | Core integrity fell below 50% 2110 | -9/Mines | Destroyed YI-UF0 2162 | -9/Mines | Assisted by bots powering up and referring to "LRC-V3" 2279 | -9/Mines | Identified exit to Materials 2279 | -9/Mines | X0-1V1 revealed exit location to -8/Materials 2301 | -9/Mines | Core integrity permanently improved by X0-1V1 (+300) 2365 | -9/Mines | Discovered exit to Materials (range 8) 2402 | -9/Mines | Entered Materials 2402 | -8/Materials | Accompanied by 3 allies 2402 | -8/Materials | Evolved 4 slots: Propulsion x1, Utility x2, Weapon x1 2413 | -8/Materials | Identified exit to Storage 2592 | -8/Materials | Central database locked down 2630 | -8/Materials | Identified Exp. Sensor Array 2696 | -8/Materials | Identified exit to Garrison 2765 | -8/Materials | Garrison activated, responded to threat 2777 | -8/Materials | Entered Garrison 2777 | -8/Garrison | Accompanied by 2 allies 2782 | -8/Garrison | Weapon slot count permanently improved by X0-1V1 (+1) 2839 | -8/Garrison | Phase Generator disabled 2921 | -8/Garrison | Triggered checkpoint 2963 | -8/Garrison | Garrison Relay disabled 3002 | -8/Garrison | Triggered checkpoint 3007 | -8/Garrison | Triggered checkpoint 3014 | -8/Garrison | Inventory capacity permanently improved by X0-1V1 (+2; -200 max core) 3065 | -8/Garrison | System corruption reached 10% 3149 | -8/Garrison | Discovered new exit (range 12) 3163 | -8/Garrison | Triggered checkpoint 3194 | -8/Garrison | Build established: Skirmisher 3236 | -8/Garrison | Garrison Relay disabled 3275 | -8/Garrison | X0-1V1 activates XOMVISION 3442 | -8/Garrison | Door terminal overloaded 3571 | -8/Garrison | Triggered checkpoint 3637 | -8/Garrison | Triggered checkpoint 3677 | -8/Garrison | Core integrity restored by X0-1V1 (+117) 3705 | -8/Garrison | Discovered new exit (range 9) 3746 | -8/Garrison | Discovered new exit (range 40) 3746 | -8/Garrison | Discovered new exit (range 16) 3746 | -8/Garrison | Discovered new exit (range 67) 3820 | -8/Garrison | Installed Relay Interface Framework 3836 | -8/Garrison | X0-1V1 rewrote YK-5GE(h) IFF filter 4033 | -8/Garrison | Triggered checkpoint 4067 | -8/Garrison | Expanded RIF knowledge: Command Fork 4147 | -8/Garrison | Build established: Scavenger-Skirmisher 4245 | -8/Garrison | X0-1V1 activates XOMVISION 4263 | -8/Garrison | Door terminal overloaded 4264 | -8/Garrison | Rescued AZ-K3N 4405 | -8/Garrison | X0-1V1 mutated your Propulsion slot to Utility slot 4430 | -8/Garrison | Murdered AZ-K3N 4437 | -8/Garrison | Found Corrupted Prototype Special Weapon 4470 | -8/Garrison | Found Corrupted Adv. Powered Armor 4501 | -8/Garrison | Entered Materials 4525 | -8/Materials | Identified exit to Factory 4525 | -8/Materials | X0-1V1 revealed exit location to -7/Factory 4753 | -8/Materials | Build established: Bothacker-Skirmisher 4767 | -8/Materials | Discovered exit to Factory (range 19) 4838 | -8/Materials | Identified Exp. Remote Datajack 5285 | -8/Materials | Discovered exit to Storage (range 7) 5340 | -8/Materials | X0-1V1 added 0b10 threat records associated with you (considerable) 5467 | -8/Materials | X0-1V1 sent you to a vault 5476 | -8/Materials | Discovered exit to Factory (range 10) 5489 | -8/Materials | Identified exit to Garrison 5547 | -8/Materials | X0-1V1 added 0b10 threat records associated with you (considerable) 5701 | -8/Materials | Search patrols dispatched 5767 | -8/Materials | Build established: Commander-Skirmisher 5806 | -8/Materials | Entered Garrison 5806 | -8/Garrison | Accompanied by 7 allies 5830 | -8/Garrison | Triggered checkpoint 5900 | -8/Garrison | Lost 4 allies 5939 | -8/Garrison | X0-1V1 rewrote Trooper 3b IFF filter 5966 | -8/Garrison | Triggered checkpoint 5982 | -8/Garrison | Triggered checkpoint 6035 | -8/Garrison | Destroyed 7 combat bots 6108 | -8/Garrison | Triggered checkpoint 6178 | -8/Garrison | Garrison Relay disabled 6179 | -8/Garrison | X0-1V1 sent you into danger 6646 | -8/Garrison | Triggered checkpoint 6660 | -8/Garrison | Triggered checkpoint 6732 | -8/Garrison | Learned Factory security intel 6757 | -8/Garrison | Expanded RIF knowledge: Program Shield 6786 | -8/Garrison | Discovered exit to Factory (range 10) 6801 | -8/Garrison | Triggered checkpoint 6855 | -8/Garrison | Garrison Relay disabled 7009 | -8/Garrison | Discovered exit to Factory (range 10) 7018 | -8/Garrison | X0-1V1 activates XOMVISION 7026 | -8/Garrison | Triggered checkpoint 7058 | -8/Garrison | Garrison Relay disabled 7179 | -8/Garrison | X0-1V1 sent hostile G-34 Mercenary (x3) 7245 | -8/Garrison | Build established: Bothacker-Skirmisher 7293 | -8/Garrison | Discovered exit to Factory (range 9) 7364 | -8/Garrison | Triggered checkpoint 7368 | -8/Garrison | Discovered new exit (range 5) 7448 | -8/Garrison | Entered Materials 7448 | -8/Materials | Accompanied by 4 allies 7491 | -8/Materials | X0-1V1 foreshadows a heat wave 7570 | -8/Materials | X0-1V1 sent allied B-75 Beast (x1) 7599 | -8/Materials | Lost 3 allies 7603 | -8/Materials | Discovered exit to Storage (range 16) 7619 | -8/Materials | Ambient heat levels rising (+10) 7672 | -8/Materials | Entered Storage 7672 | -8/Storage | Accompanied by 2 allies 7673 | -8/Storage | Identified exit to Recycling 7878 | -8/Storage | X0-1V1 revealed exit location to -7/Factory 7910 | -8/Storage | Repaired Gauss Rifle 7962 | -8/Storage | Repaired Flexi-carbon Leg 7991 | -8/Storage | Core integrity restored by X0-1V1 (+97) 8013 | -8/Storage | Repaired Flexi-carbon Leg 8069 | -8/Storage | Repaired Bore Cannon? 8414 | -8/Storage | X0-1V1 sent hostile G-47 Trooper (x5) 8507 | -8/Storage | Destroyed 10 combat bots 8660 | -8/Storage | Learned location of Armory (-3) 8769 | -8/Storage | X0-1V1 activates XOMVISION 9270 | -8/Storage | Found Prototype Launcher 9270 | -8/Storage | Identified Gui. EMP Blaster 9397 | -8/Storage | Entered Factory 9397 | -7/Factory | Evolved 2 slots: Propulsion x2 9402 | -7/Factory | X0-1V1 enhanced Transport squad support 9455 | -7/Factory | X0-1V1 sent you into danger 9564 | -7/Factory | Build established: Bothacker-Gladiator 9620 | -7/Factory | Identified exit to Factory 9620 | -7/Factory | X0-1V1 revealed exit location to -6/Factory 9638 | -7/Factory | X0-1V1 sent hostile H-61 Shepherd (x1) 9661 | -7/Factory | AWS/Thermal suddenly broke down 10040 | -7/Factory | X0-1V1 sent you to a vault 10485 | -7/Factory | Fabricated B-48 Gladiator (x3) 10525 | -7/Factory | Build established: Commander-Gladiator 10537 | -7/Factory | Identified exit to Garrison 10597 | -7/Factory | First assault squad dispatched 10597 | -7/Factory | Garrison activated, responded to threat 10609 | -7/Factory | Entered Garrison 10609 | -7/Garrison | Accompanied by 2 allies 10639 | -7/Garrison | Lost 9 allies 10707 | -7/Garrison | Triggered checkpoint 10737 | -7/Garrison | Garrison Relay disabled 10846 | -7/Garrison | Heavy support dispatched to Factory 10900 | -7/Garrison | X0-1V1 activates XOMVISION 10979 | -7/Garrison | Triggered checkpoint 10993 | -7/Garrison | Triggered checkpoint 11026 | -7/Garrison | Destroyed 7 combat bots 11033 | -7/Garrison | Lost 5 allies 11053 | -7/Garrison | X0-1V1 sent you into danger 11077 | -7/Garrison | Triggered checkpoint 11155 | -7/Garrison | H-XX Assembler disabled 11171 | -7/Garrison | Triggered checkpoint 11223 | -7/Garrison | Discovered exit to Factory (range 3) 11275 | -7/Garrison | Build established: Bothacker-Gladiator 11310 | -7/Garrison | Garrison Relay disabled 11327 | -7/Garrison | Triggered checkpoint 11437 | -7/Garrison | Triggered checkpoint 11466 | -7/Garrison | X0-1V1 activates XOMVISION 11507 | -7/Garrison | Garrison Relay disabled 11530 | -7/Garrison | Expanded RIF knowledge: Hotswap 11532 | -7/Garrison | X0-1V1 revealed exit location to -6/Factory 11541 | -7/Garrison | Discovered exit to Factory (range 10) 11545 | -7/Garrison | X0-1V1 destroyed Phase Generator 11545 | -7/Garrison | Phase Generator disabled 11718 | -7/Garrison | Entered Factory 11718 | -6/Factory | Accompanied by 4 allies 11718 | -6/Factory | Evolved 2 slots: Propulsion x1, Utility x1 11748 | -6/Factory | Identified exit to Garrison 11859 | -6/Factory | X0-1V1 activates XOMVISION 11978 | -6/Factory | Entered Garrison 11978 | -6/Garrison | Accompanied by 4 allies 12010 | -6/Garrison | Triggered checkpoint 12098 | -6/Garrison | X0-1V1 destroyed Phase Generator 12098 | -6/Garrison | Phase Generator disabled 12185 | -6/Garrison | Triggered checkpoint 12315 | -6/Garrison | X0-1V1 turns hostiles against one another 12315 | -6/Garrison | Triggered checkpoint 12604 | -6/Garrison | Triggered checkpoint 12630 | -6/Garrison | Garrison Relay disabled 12659 | -6/Garrison | Discovered new exit (range 13) 12740 | -6/Garrison | Triggered checkpoint 12823 | -6/Garrison | Flexi-carbon Leg+ reconfigured into Item Mimic 12838 | -6/Garrison | Discovered new exit (range 12) 12889 | -6/Garrison | Triggered checkpoint 12902 | -6/Garrison | Garrison Relay disabled 12993 | -6/Garrison | Found embedded Infiltrators 13098 | -6/Garrison | Triggered checkpoint 13112 | -6/Garrison | Garrison Relay disabled 13260 | -6/Garrison | Expanded RIF knowledge: Zone Cloak 13272 | -6/Garrison | Discovered new exit (range 3) 13282 | -6/Garrison | Entered Factory 13282 | -5/Factory | Accompanied by 1 ally 13282 | -5/Factory | Evolved 2 slots: Propulsion x1, Utility x1 13302 | -5/Factory | Identified exit to Factory 13302 | -5/Factory | X0-1V1 revealed exit location to -4/Factory 13388 | -5/Factory | Identified exit to Garrison 13555 | -5/Factory | X0-1V1 rewrote Sentinel 6b IFF filter 13556 | -5/Factory | Garrison activated, responded to threat 13561 | -5/Factory | Entered Garrison 13561 | -5/Garrison | Accompanied by 2 allies 13725 | -5/Garrison | Build established: Scavenger-Gladiator 13748 | -5/Garrison | Lost 3 allies 13891 | -5/Garrison | X0-1V1 revealed exit location to -4/Factory 13913 | -5/Garrison | Garrison Relay disabled 13939 | -5/Garrison | Triggered checkpoint 13951 | -5/Garrison | X0-1V1 activates XOMVISION 13953 | -5/Garrison | Triggered checkpoint 13965 | -5/Garrison | Triggered checkpoint 14011 | -5/Garrison | Rescued a captive Derelict 14090 | -5/Garrison | Spotted Executioner 14110 | -5/Garrison | Spotted Executioner 14133 | -5/Garrison | Destroyed Executioner 14137 | -5/Garrison | Lost 8 allies 14146 | -5/Garrison | Destroyed Executioner 14152 | -5/Garrison | Found Prototype Processor 14152 | -5/Garrison | Identified Exp. Targeting Computer 14289 | -5/Garrison | Build established: Bothacker-Gladiator 14310 | -5/Garrison | Triggered checkpoint 14320 | -5/Garrison | Spotted B-75 Beast 14384 | -5/Garrison | Found embedded Infiltrators 14398 | -5/Garrison | Lost 4 allies 14442 | -5/Garrison | Destroyed B-75 Beast 14520 | -5/Garrison | Triggered checkpoint 14633 | -5/Garrison | Triggered checkpoint 14671 | -5/Garrison | Rewired Striker 14687 | -5/Garrison | Rewired Striker 14711 | -5/Garrison | Garrison Relay disabled 14728 | -5/Garrison | X0-1V1 revealed exit location to -4/Factory 14736 | -5/Garrison | Build established: Bothacker-Mutant 14818 | -5/Garrison | Discovered exit to Factory (range 12) 14902 | -5/Garrison | Rewired B-75 Beast 14906 | -5/Garrison | Spotted B-86 Titan 14915 | -5/Garrison | Allies destroyed B-86 Titan 14968 | -5/Garrison | Triggered checkpoint 14995 | -5/Garrison | Expanded RIF knowledge: Zone Cloak 15013 | -5/Garrison | Garrison Relay disabled 15067 | -5/Garrison | Entered Factory 15067 | -4/Factory | Accompanied by 8 allies 15067 | -4/Factory | Evolved 2 slots: Utility x2 15251 | -4/Factory | Identified exit to Garrison 15259 | -4/Factory | Entered Garrison 15259 | -4/Garrison | Accompanied by 6 allies 15279 | -4/Garrison | Triggered checkpoint 15286 | -4/Garrison | Build established: Botlord-Mutant 15305 | -4/Garrison | X0-1V1 activates XOMVISION 15328 | -4/Garrison | Garrison Relay disabled 15479 | -4/Garrison | Triggered checkpoint 15491 | -4/Garrison | Spotted B-86 Titan 15493 | -4/Garrison | Triggered checkpoint 15497 | -4/Garrison | Allies destroyed B-86 Titan 15509 | -4/Garrison | Triggered checkpoint 15535 | -4/Garrison | Triggered checkpoint 15539 | -4/Garrison | Triggered checkpoint 15549 | -4/Garrison | Lost 5 allies 15614 | -4/Garrison | Discovered new exit (range 9) 15729 | -4/Garrison | Expanded RIF knowledge: Alert ID Control 15765 | -4/Garrison | Triggered checkpoint 15782 | -4/Garrison | Garrison Relay disabled 15838 | -4/Garrison | X0-1V1 activates XOMVISION 15892 | -4/Garrison | Discovered new exit (range 8) 15908 | -4/Garrison | Discovered new exit (range 62) 15908 | -4/Garrison | Discovered new exit (range 9) 15908 | -4/Garrison | Discovered new exit (range 67) 16020 | -4/Garrison | Spotted Striker 16022 | -4/Garrison | Spotted Striker 16047 | -4/Garrison | Destroyed Striker 16056 | -4/Garrison | Destroyed Striker 16096 | -4/Garrison | Entered Research 16096 | -3/Research | Accompanied by 9 allies 16096 | -3/Research | Evolved 2 slots: Propulsion x1, Utility x1 16336 | -3/Research | X0-1V1 sent you to a vault 16342 | -3/Research | Found Chaos Jack 16347 | -3/Research | Found Prototype Processor 16347 | -3/Research | Identified Exp. Target Analyzer 16362 | -3/Research | Lost 3 allies 16372 | -3/Research | Discovered new exit (range 7) 16408 | -3/Research | Build established: Botlord-Gladiator 16641 | -3/Research | System corruption reached 10% 16646 | -3/Research | Weapon slot count temporarily expanded by X0-1V1 (+1) 16695 | -3/Research | Found Prototype Device 16695 | -3/Research | Identified Exp. Thermal Shield 16704 | -3/Research | Lost 5 parts (1p2n2u) 16800 | -3/Research | Found Gamma Bomb Array 16975 | -3/Research | X0-1V1 upgraded hostiles (x1) 17052 | -3/Research | X0-1V1 redirected Transport squads to designated parking area 17090 | -3/Research | Central database locked down 17135 | -3/Research | X0-1V1 added 0b10 threat records associated with you (minor) 17216 | -3/Research | X0-1V1 activates XOMVISION 17254 | -3/Research | Lost 4 parts (3n1u) 17270 | -3/Research | X0-1V1 sent allied Executioner (x2) 17282 | -3/Research | Spotted B-86 Titan 17297 | -3/Research | Destroyed B-86 Titan 17327 | -3/Research | Lost 5 allies 17614 | -3/Research | Cargo convoy interrupted 17617 | -3/Research | Lost 4 allies 17728 | -3/Research | X0-1V1 sent allied Striker (x1) 17760 | -3/Research | X0-1V1 turns hostiles against one another 17807 | -3/Research | Lost 3 allies 17971 | -3/Research | Discovered new exit (range 8) 17979 | -3/Research | Entered another Research area 17979 | -2/Research | Evolved 2 slots: Power x1, Utility x1 18005 | -2/Research | X0-1V1 enhanced Transport squad support 18296 | -2/Research | Build established: Hauler-Gladiator 18345 | -2/Research | Discovered new exit (range 4) 18358 | -2/Research | Identified exit to Quarantine 18358 | -2/Research | X0-1V1 sent you to a vault 18544 | -2/Research | Spotted B-90 Cyclops 18571 | -2/Research | Found Fusion Bomb Launcher 18676 | -2/Research | X0-1V1 downgraded hostiles (x2) 18684 | -2/Research | Lost 5 allies 18707 | -2/Research | Weapon slot count temporarily expanded by X0-1V1 (+1) 18807 | -2/Research | X0-1V1 redirected Transport squads to designated parking area 18879 | -2/Research | X0-1V1 turns hostiles against one another 19110 | -2/Research | X0-1V1 sent you into danger 19189 | -2/Research | Assimilated ARC 9a with formatsys_deep 19216 | -2/Research | Master 9a assimilated hostile H-88 Terminator 19227 | -2/Research | Discovered exit to Quarantine (range 16) 19315 | -2/Research | X0-1V1 mutated your Utility slot to Weapon slot 19413 | -2/Research | Lost 5 allies 19422 | -2/Research | System corruption reached 10% 19431 | -2/Research | X0-1V1 sent allied Savage (x4) 19434 | -2/Research | P-80 Master assimilated allied 6V-Q4F(b) 19458 | -2/Research | Destroyed 10 combat bots 19724 | -2/Research | X0-1V1 activates XOMVISION 19767 | -2/Research | Build established: Scavenger-Gladiator 19871 | -2/Research | X0-1V1 sent allied B-99 Colossus (x2) 19886 | -2/Research | Garrison activated, responded to threat 19999 | -2/Research | X0-1V1 whisked you away to safety 20016 | -2/Research | Found Prototype Processor 20016 | -2/Research | Identified Exp. Core Analyzer 20213 | -2/Research | Lost 4 parts (1p3u) 20349 | -2/Research | X0-1V1 announced a LAN party 20400 | -2/Research | X0-1V1 activates XOMVISION 20476 | -2/Research | Crushed by falling debris 20479 | -2/Research | First assault squad dispatched 20559 | -2/Research | Build established: Bothacker-Gladiator 20627 | -2/Research | Destroyed 8 combat bots 20666 | -2/Research | Discovered new exit (range 15) 20719 | -2/Research | Entered Access 20719 | -1/Access | Accompanied by 1 ally 20719 | -1/Access | Evolved 2 slots: Utility x2 20948 | -1/Access | X0-1V1 sent you to a vault 21094 | -1/Access | Lost 3 allies 21200 | -1/Access | Garrison activated, responded to threat 21272 | -1/Access | Spotted B-99 Colossus 21315 | -1/Access | X0-1V1 sent allied H-81 Overseer (x3) 21315 | -1/Access | Allies destroyed B-99 Colossus 21346 | -1/Access | Lost 13 parts (3p3n6u1w) 21469 | -1/Access | First assault squad dispatched 21475 | -1/Access | Found Exp. Thermal Shield 21478 | -1/Access | Found Exp. Thermal Shield 21498 | -1/Access | Found Unknown Protection 21498 | -1/Access | Identified Hvy. Reactive Plating 21562 | -1/Access | X0-1V1 activates XOMVISION 21800 | -1/Access | Watched by a mysterious "MATRIX" hacker 22115 | -1/Access | X0-1V1 downgraded hostiles (x3) 22181 | -1/Access | X0-1V1 whisked you away to safety 22202 | -1/Access | Identified exit to Surface 22202 | -1/Access | X0-1V1 revealed exit location to -0/Surface 22211 | -1/Access | Lost 5 parts (2p1n2u) 22338 | -1/Access | Found Adv. Force Booster 22396 | -1/Access | Lost 5 parts (1p1n2u1w) 22420 | -1/Access | System corruption reached 10% 22716 | -1/Access | Build established: Scavenger-Gladiator 22910 | *** | Escaped! Last Messages --------------- 22812_ X0-1V1 is amused. 22821_ Jacked Y-72 Warden... >>formatsys_high Rerouting network defenses. Erasing system data. Installing primary routines, ETC: 6. 22826_ Reactivated Warden 10d. 22853_ System corrupted: Matter fused (-8). 22855_ Connecting with Terminal... 22855_ ALERT: Suspicious activity at Terminal A001. Dispatching Investigation squad. 22862_ Dropped Lgt. Quantum Reactor. 22873_ Chain reaction triggered in Corrupted Lgt. Quantum Reactor. 22873_ Sealed Barrier breached. 22877_ Main Access Shell breached. 22891_ System corrupted: Component data lost. [Achievement: Chaotic Teddy Bear] Map ----- +----------------------------------------------------+ | ?????????# # #??????????????????? | | ?????????# " + #??????????????????? | | ?????????# ######+##+########################## | | ?????????## ##???????? | | ??????????# #???????? | | ??????????# #######?? | | ########### | | #######?????????####### ###### # | | #??????????????????# ???# # | | #??????????????????# #??# # | | #??????????????????# ??# # | | ########### #??????????????????# |% ??# # | | ??????????# #??????????????????# = ??# # | | ??????????# #??????????????????# #### # | | ??????????# #???????BB????BB???# ## # | | ??????????# #???????BB????BB???# # # | | ??????????# #??????????????????## # #*%# | | ??????????# #??????????????????# % #=[ | | ??????????# #??????????????????# |#%! | | ??????????#gg#??????????????????# """""" * = | | ??????????#gi#?????#"???????""#????""""" %%[ | | ????##????#g #?????# ??????? #?????""""" [ %% | | ?#### ##??# #?????# ?"""""" #?????""""" | | ?? ?# #?????# ?" " #?????""""" # | | ?? ?# #?????# " "" " #???? #=| | | ?? """ # #?????# " "@ " #?? % * ##! # | | ?# """ # #?????# " " #?# *% ## + | | ?# R" + #?????# """" " #?############### # | | ?+ """ # #?????# #???????????????#= # | | ?? ! "" # #?????# #???????????????"% # | | ?? ?# #?????"""""" ""???????????????"* # | | ?? ?# #?????#"" #???????????????" " | | ?#######??# #?????#"" #???????????????" " | | ??????????# #?????#"" #???????????????" # | | ??????????# #?????#T #???????????????# # | | ??????????# #?????#"" #???????????????? # | | ??????????# #?????#"" #???????????????? ? | | ?????###### #######"" #???????????????? ? | | g ????????? ? | | ^ p ???????? | | ?##########+#############################????????? | | ?????????????????????????????????????????????????? | | ?????????????????????????????????????????????????? | | ?????????????????????????????????????????????????? | | ?????????????????????????????????????????????????? | | ?????????????????????????????????????????????????? | | ?????????????????????????????????????????????????? | | ?????????????????????????????????????????????????? | | ?????????????????????????????????????????????????? | | ?????????????????????????????????????????????????? | +----------------------------------------------------+ Best States ------------- Heat Dissipation 159 Energy Generation 113 Energy Capacity 2260 Matter Stores 900 Matter Capacity 1000 Sight Range 20 Terrain Scan Density 10 Jamming Range 16 Cloak Strength 4 Power Amplification 100 Armor Coverage 625 Resistance: KI 50 Resistance: TH 30 Core Shielding 40 Propulsion Shielding 66 Weapon Cycling 25 Melee Speed Boost 20 Phase Shifting 15 Evasion (%) 92 Targeting Accuracy 8 Melee Accuracy 6 Target Analysis 8 Core Analysis 6 Recoil Reduction 3 Matter Filtering 50 Force Boost 40 Offensive Hacking 10 Relay Coupler Types 6 Relay Coupler Value 165 Item Schematics ----------------- None Robot Schematics ------------------ None Fabricated ------------ B-48 Gladiator | x3 | -7/Factory | Preloaded Repaired ---------- Lgt. Treads | 2% | -10/Materials Gauss Rifle | 32% | -8/Storage Flexi-carbon Leg | 68% | -8/Storage Flexi-carbon Leg | 70% | -8/Storage Bore Cannon | 70% | -8/Storage Studied --------- Com. Wheel | -8/Materials | Hacked Flexi-carbon Leg | -7/Factory | Hacked Imp. Carbon-fiber Leg | -7/Factory | Hacked Myomer Leg | -3/Research | Hacked Imp. Thunder Leg | -3/Research | Hacked Hyp. Railgun | -3/Research | Hacked Enh. Force Lance | -3/Research | Hacked Rnf. Antimatter Reactor | -3/Research | Hacked Hvy. Shield Leg | -2/Research | Hacked Alien Tech Used ----------------- None Achievements -------------- Chaotic Teddy Bear Challenges ------------ None Game ------ Seed UltimatePowerClaymores Manual? 0 Play Time 03:22:48 Cumulative 2253.7 hours Start 2026.06.25 @ 13:38:10 End 2026.06.26 @ 03:27:18 Sessions 3 Manual Loads 0 Difficulty Rogue Special Mode None Game No. 1413 Rogue 1409 Adventurer 4 Explorer 0 Win Type 0 Total 323 Types 242/14/27/11/4/1/5/10/5/4 Lore% 98 Gallery% 95 Achievement% 94 Wizard Run 0 Options --------- Layout 2 ASCII 0 Keyboard 1 Movement Vi Keybinds 0 Fullscreen 0 Font 24/Terminus Map View 59x48 Zoom Use 0% Tactical HUD 1 Map Filters NONE Filters NONE Steam 1 RUN: e28220e4-69f0-467a-b3f1-f9353d6b1236